[Event "DFMM-LV 2023"]
[Site "Braunfels"]
[Date "2023.06.11"]
[Round "5.11"]
[White "Braeutigam, Katerina"]
[Black "Ter-Avetisjana, Agnesa Stepania"]
[Result "0-1"]
[Annotator "TA"]
[ECO "B13"]
[WhiteElo "1957"]
[BlackElo "1988"]
[PlyCount "88"]
[EventDate "2023.06.09"]
[EventType "team-tourn"]
[EventCountry "GER"]
[SourceTitle "playchess.com"]
[Source "ChessBase"]
[SourceQuality "1"]
[TimeControl "40/5400+30:1800+30"]

{[%evp 9,88,22,20,28,15,16,37,14,25,24,22,19,14,15,19,0,16,18,34,0,0,0,0,0,0,-35,-43,-40,-9,-8,0,-8,0,-21,-36,-16,-19,-20,-24,-54,-25,-85,0,-140,-128,-219,-227,-271,-199,-258,-166,-247,-239,-258,-252,-320,-281,-275,-259,-354,-346,-695,-675,-1098,-1115,-1066,-962,-1315,-1279,-29988,-3110,-29990,-29991,-29993,-29993,-29994,-29995,-29997,-29998,-29998,-29999]} 1. e4 {[%emt 0:00:03]} c6 {[%emt 0:00:09]} 2. d4 {[%emt 0:00:03]} d5 {[%emt 0:00:09]} 3. exd5 {[%emt 0:00:04]} cxd5 {[%emt 0:00:05]} 4. Bd3 {[%emt 0:00:06]} Nc6 {[%emt 0:00:03]} 5. c3 {[%emt 0:00:05]} Qc7 {[%emt 0:00:01]} 6. Na3 {[%emt 0:00:10] B13: Caro-Kann: Exchange Variation and Panov-Botvinnik Attack.} a6 {[%emt 0:00:07] Prevents Nb5.} 7. Nc2 {[%emt 0:00:05]} g6 {[%emt 0:00:06]} 8. Ne3 {[%emt 0:00:15] White is slightly better.} Nf6 {[%emt 1:33:50]} 9. h3 {[%emt 0:00:29]} Bg7 {[%emt 0:00:00]} 10. Nf3 {[%emt 0:00:18]} O-O {[%emt 0:01:00]} 11. O-O {[%emt 0:00:22]} b5 {[%emt 0:00:00] [#]} 12. Qb3 $146 {[%emt 0:11:55]} ({Predecessor:} 12. b3 Rd8 13. Bb2 Nh5 14. Re1 e5 15. dxe5 Nxe5 16. Nxe5 Bxe5 17. Rc1 Nf4 18. Bf1 {½-½ Komendecki,J (2116)-Kaminski,P (2097) POL-chT 2nd League 2018 (3.74)}) 12... Rd8 {[%emt 0:00:00]} 13. a4 {[%emt 0:01:47]} Na5 {[%emt 0:00:00]} 14. Qc2 {[%emt 0:08:16]} (14. Qd1 $5 {[%cal Ra4b5]}) 14... Bd7 {[%emt 0:00:00]} 15. Ne5 {[%emt 0:04:43]} Be8 {[%emt 0:00:00]} 16. axb5 {[%emt 0:20:04]} axb5 {[%emt 0:00:00]} 17. f4 {[%emt 0:02:20]} e6 {[%emt 0:00:00]} 18. g4 {[%emt 0:02:58]} Nc4 {[%emt 0:00:00]} (18... Nc6 $5 {[%cal Ra8a1]} 19. Rxa8 Rxa8 $11) 19. Rxa8 {[%emt 0:02:49]} Rxa8 {[%emt 0:00:00]} 20. Qg2 {[%emt 0:12:12]} Ra2 {[%emt 0:00:00][%cal Oa2b2]} 21. Bxc4 {[%emt 0:15:11]} bxc4 {[%emt 0:00:00]} 22. f5 {[%emt 0:01:14]} Ne4 {[%emt 0:00:00] [#] Hoping for ...Nxc3.} 23. fxe6 {[%emt 0:02:43]} fxe6 {[%emt 0:00:00] Threatens to win with ...Nxc3.} (23... Bxe5 $2 24. Nxd5 Qd6 25. Qxe4 $18) 24. Qf3 {[%emt 0:02:24]} Ng5 {[%emt 0:00:00] Active counter play!} 25. Qg3 {[%emt 0:00:30] [#]} (25. Qg2 $11 {keeps the balance.}) 25... Nf7 {[%emt 0:00:00]} (25... h6 $1 $17 26. h4 Nf7) 26. Ng2 {[%emt 0:08:03] White is now going downhill.} (26. g5 $1 $11 {was the only way to keep the balance.}) 26... Nxe5 $17 {[%emt 0:00:00]} 27. dxe5 {[%emt 0:02:00] White is weak on the light squares} (27. Bf4 $17 {might work better.}) 27... Bxe5 $19 {[%emt 0:00:00]} (27... Qxe5 28. Bf4 Qf6 29. Bh6 $17) 28. Qf3 {[%emt 0:02:47][%csl Gf1][%cal Rf3f8]} Bf7 {[%emt 0:00:00]} 29. Nf4 {[%emt 0:00:28]} (29. h4 $142) 29... Ra8 {[%emt 0:00:00]} 30. Ne2 {[%emt 0:00:30]} (30. h4 $142) 30... Bg7 {[%emt 0:00:00]} 31. Nf4 {[%emt 0:00:34]} Rd8 {[%emt 0:00:00]} ({And not} 31... g5 32. Nh5 Bxh5 33. gxh5 $17) 32. Rd1 {[%emt 0:00:14]} Qb7 {[%emt 0:00:00]} ({But not} 32... Be5 $2 33. Qf2 $19) ({Not} 32... g5 33. Nh5 Bxh5 34. gxh5 $17) 33. Ng2 {[%emt 0:00:31]} e5 {[%emt 0:00:00][%cal Be6e5,Be5d4,Bd4d3][%mdl 32]} 34. Qe2 {[%emt 0:00:42]} d4 {[%emt 0:00:00]} 35. cxd4 $2 {[%emt 0:00:06]} (35. Rf1) 35... exd4 {[%emt 0:00:00]} 36. Kh1 {[%emt 0:00:48]} d3 {[%emt 0:00:00]} 37. Qf2 {[%emt 0:00:20]} Bd5 {[%emt 0:00:00][%cal Bf7d5,Bd5g2,Bg2h3][%mdl 32]} 38. Kh2 {[%emt 0:00:37]} Rf8 {[%emt 0:00:00][%cal Bd8f8,Bf8f3,Bf3g3][%mdl 32]} 39. Qd2 {[%emt 0:00:24]} Be5+ {[%emt 0:00:00]} (39... Qc7+ $142 40. Nf4 Rxf4 41. Qxf4 Be5 42. Rf1 g5 {[%mdl 64] Pin} 43. h4 gxf4 44. Kh3 h5 45. Bxf4 Bxf4 46. Rg1 Qb6 47. Re1 Qxb2 48. Re8+ Kf7 49. Rf8+ Kxf8 50. gxh5 Qg2#) 40. Kh1 {[%emt 0:00:13]} Rf3 {[%emt 0:00:00] Black mates.} 41. Qh6 {[%emt 0:20:46]} Rg3 {[%emt 0:00:00]} 42. Bf4 {[%emt 0:07:07]} Bxg2+ {[%emt 0:00:00] A strong pair of Bishops.} 43. Kg1 {[%emt 0:00:27]} Bxh3+ {[%emt 0:00:00]} 44. Kf2 {[%emt 0:01:00]} Qf3+ {[%emt 0:00:00] Weighted Error Value: White=0.71/Black=0.32} 0-1

[Event "DFMM-LV 2023"]
[Site "Braunfels"]
[Date "2023.06.11"]
[Round "5.13"]
[White "Gressmann, Hanna"]
[Black "Safonova, Valeria"]
[Result "1/2-1/2"]
[Annotator "TA"]
[ECO "B24"]
[WhiteElo "1933"]
[BlackElo "1753"]
[PlyCount "86"]
[EventDate "2023.06.09"]
[EventType "team-tourn"]
[EventCountry "GER"]
[SourceTitle "playchess.com"]
[Source "ChessBase"]
[SourceQuality "1"]
[TimeControl "40/5400+30:1800+30"]

{[%evp 19,86,-21,-14,-15,-13,-41,-39,-43,-39,-43,-27,-28,-9,-6,-14,-24,15,12,21,-35,-30,-35,61,-8,0,-54,-24,-44,-42,-56,-54,-75,-72,-64,-48,-56,-56,-120,-11,-60,-26,-33,-30,-27,-27,-33,-18,-159,-166,-151,-70,-93,-79,-70,-64,-188,-168,-387,-367,-367,-137,-149,-89,-114,0,-95,0,-368,0]} 1. e4 {[%emt 0:00:03]} c5 {[%emt 0:00:03]} 2. Nc3 {[%emt 0:00:07]} a6 {[%emt 0:00:05]} 3. g3 {[%emt 0:00:10]} Nc6 {[%emt 0:01:13]} 4. Bg2 {[%emt 0:00:09]} d6 {[%emt 0:01:15]} 5. f4 {[%emt 0:01:54]} e6 {[%emt 0:01:46]} 6. Nf3 {[%emt 0:01:49]} b5 {[%emt 0:15:11]} 7. d3 {[%emt 0:01:37]} Bb7 {[%emt 0:01:14]} 8. O-O {[%emt 0:00:57]} Be7 {[%emt 0:13:12]} 9. Be3 {[%emt 0:08:34]} Nf6 {[%emt 0:01:33][%cal Bg8f6,Bf6d7,Bd7b6,Bb6d5,Bd5e3][%mdl 32]} 10. h3 {[%emt 0:01:56]} O-O {[%emt 0:00:26] [#]} 11. Bf2 $146 {[%emt 0:07:11] B24: Closed Sicilian: 3 g3 sidelines.} ({Predecessor:} 11. g4 d5 12. e5 d4 13. exf6 Bxf6 14. Bd2 dxc3 15. bxc3 b4 16. cxb4 Bxa1 17. Qxa1 Nxb4 18. Qb2 Rb8 19. Bc3 Nxd3 20. Bxg7 Nxb2 {0-1 Rom,J (2202)-Lauridsen,J (2221) Titled Tuesday intern op 19th Jul Early blitz 2022 (2)}) 11... Re8 {[%emt 0:12:34]} 12. e5 {[%emt 0:11:36]} dxe5 {[%emt 0:10:38]} 13. fxe5 {[%emt 0:02:19] Black is slightly better.} Nd7 {[%emt 0:03:57]} 14. Qe2 {[%emt 0:02:40]} Qc7 {[%emt 0:01:07][%cal Rc6e5]} 15. Rae1 {[%emt 0:02:57]} b4 {[%emt 0:03:43]} 16. Nb1 {[%emt 0:04:02]} Nb6 {[%emt 0:01:40]} 17. Nbd2 {[%emt 0:01:52]} Nd5 {[%emt 0:00:25]} 18. Nc4 {[%emt 0:02:59]} Na5 {[%emt 0:00:49]} 19. Ne3 {[%emt 0:01:42]} (19. Nfd2 $11) 19... Nxe3 $15 {[%emt 0:00:31]} 20. Bxe3 {[%emt 0:00:45]} h6 {[%emt 0:02:29]} (20... Bd5 $15) 21. Qf2 {[%emt 0:04:40]} (21. Bxh6 $1 $14 gxh6 22. Nd2) 21... Rf8 $11 {[%emt 0:00:36]} 22. c3 {[%emt 0:03:55]} (22. b3 $11) 22... Rac8 {[%emt 0:06:17]} 23. cxb4 {[%emt 0:01:49]} cxb4 {[%emt 0:00:02]} 24. Rc1 {[%emt 0:01:23]} Qd7 {[%emt 0:00:32]} 25. Rxc8 {[%emt 0:01:37]} Rxc8 {[%emt 0:01:41]} 26. Nd2 {[%emt 0:04:24]} Bf8 {[%emt 0:00:30] aiming for ...Rc2.} (26... Qxd3 {keeps more tension.} 27. Bxb7 Nxb7 28. Qxf7+ Kh7) 27. Bxb7 {[%emt 0:03:35]} Qxb7 {[%emt 0:01:08]} 28. Ne4 {[%emt 0:01:12]} ({Better is} 28. Qf4 $15) 28... Qd7 {[%emt 0:04:08]} (28... Rd8 $1 $17 29. Qe2 Nc6 30. Bxh6 Nxe5) 29. Bc5 {[%emt 0:05:53]} (29. Qe2 $11) 29... Bxc5 {[%emt 0:01:12]} 30. Nxc5 {[%emt 0:00:04]} Qa7 {[%emt 0:02:00]} 31. d4 {[%emt 0:01:02]} Nc6 {[%emt 0:00:47][%cal Oc6d4] White must now prevent ...Nxd4!} 32. Rc1 {[%emt 0:01:30]} Ne7 {[%emt 0:00:55]} 33. Nd3 {[%emt 0:10:17]} (33. g4 $11 {remains equal.}) 33... Rxc1+ $17 {[%emt 0:01:35]} 34. Nxc1 {[%emt 0:00:04][%mdl 4096] Endgame KQN-KQN} Nc6 {[%emt 0:01:52]} (34... Qd7 $17 35. Kh2 a5) 35. Nb3 {[%emt 0:01:28]} Qb6 {[%emt 0:03:37]} 36. Qe3 {[%emt 0:03:23]} Qb5 {[%emt 0:01:19]} 37. Qc1 {[%emt 0:02:30]} (37. Qf3 $15) 37... Qd5 $19 {[%emt 0:03:07]} 38. Qc5 $2 {[%emt 0:01:14]} (38. Kh2 {was worth a try.}) 38... Qf3 {[%emt 0:00:32]} 39. Kh2 {[%emt 0:02:26] [#]} Qf2+ {[%emt 0:00:20]} (39... a5 $1 $19 {[%cal Ra5a4] has better winning chances. And now ...a4 would win.} 40. Qc2 a4) 40. Kh1 $17 {[%emt 0:00:03]} Qf1+ {[%emt 0:00:55]} 41. Kh2 {[%emt 0:30:16]} Qf2+ {[%emt 0:32:01]} 42. Kh1 {[%emt 0:00:13] [#]} Qf3+ {[%emt 0:00:00][%mdl 8192]} (42... Qe1+ $1 $17 43. Kg2 Qe2+ 44. Kg1 Qf3) 43. Kh2 $19 {[%emt 0:00:00]} Qf2+ $2 {[%emt 0:00:00] Weighted Error Value: White=0.40/Black=0.33} ({Black should try} 43... a5 $19 44. Qc2 a4) 1/2-1/2

[Event "DFMM-LV 2023"]
[Site "Braunfels"]
[Date "2023.06.11"]
[Round "5.14"]
[White "Hartung, Katja"]
[Black "Leib, Britta"]
[Result "0-1"]
[Annotator "TA"]
[ECO "B13"]
[WhiteElo "1944"]
[BlackElo "1960"]
[PlyCount "130"]
[EventDate "2023.06.09"]
[EventType "team-tourn"]
[EventCountry "GER"]
[SourceTitle "playchess.com"]
[Source "ChessBase"]
[SourceQuality "1"]
[TimeControl "40/5400+30:1800+30"]

{[%evp 14,129,-6,1,44,37,35,22,17,0,31,25,19,26,25,27,29,9,20,0,29,13,41,20,12,6,25,0,0,-22,-26,-24,-29,-117,-127,-106,-41,-66,-31,-32,0,-36,-33,-35,-35,-42,-16,-46,-44,-60,-46,-140,-148,-149,-118,-118,-95,-146,-141,-243,-222,-325,-243,-248,-182,-229,-150,-227,0,-248,-233,-450,0,-230,-187,-392,-275,-418,-422,-947,-927,-1025,-465,-415,-399,-410,-409,-381,-383,-618,-393,-2966,-497,-29992,-29993,-29993,-2068,-29995,0,-29993,0,-29987,-29988,-29987,-497,-1543,-509,-29990,-577,-5836,-547,-29996,-29997,-29997,-29998,-29998,-29999,-29999]} 1. e4 {[%emt 0:00:04]} c6 {[%emt 0:00:04]} 2. d4 {[%emt 0:00:06]} d5 {[%emt 0:00:02]} 3. exd5 {[%emt 0:00:50]} cxd5 {[%emt 0:00:12]} 4. Bd3 {[%emt 0:00:37]} Nc6 {[%emt 0:02:59]} 5. c3 {[%emt 0:00:13]} Nf6 {[%emt 0:06:50]} 6. Nf3 {[%emt 0:03:36]} Bg4 {[%emt 0:01:11]} 7. Nbd2 {[%emt 0:02:39] 7.h3 is the modern continuation.} e6 {[%emt 0:03:33]} 8. Qa4 {[%emt 0:09:34]} Bxf3 {[%emt 0:07:07] B13: Caro-Kann: Exchange Variation and Panov-Botvinnik Attack.} 9. Nxf3 {[%emt 0:00:12]} Bd6 {[%emt 0:01:07]} 10. Bg5 {[%emt 0:03:57]} Qc7 {[%emt 0:02:44] [#] The position is equal.} 11. Rc1 $146 {[%emt 0:05:17]} ({Predecessor:} 11. O-O Ng4 12. h3 h6 13. Bd2 Nf6 14. Rfe1 O-O 15. Re2 a6 16. Rae1 b5 17. Qd1 {½-½ Tologontegin,S (2335)-Khamrakulov,D (2490) Tashkent zt 3.4 2011 (1)}) 11... Nd7 {[%emt 0:04:49]} (11... Ne4 $5 {[%cal Re4g5]} 12. Be3 f5 $11) 12. Qd1 {[%emt 0:07:26]} h6 {[%emt 0:10:39]} 13. Be3 {[%emt 0:03:06]} O-O {[%emt 0:08:12]} 14. O-O {[%emt 0:03:02]} Rfe8 {[%emt 0:05:12]} 15. Bb1 {[%emt 0:02:32]} Rad8 {[%emt 0:02:36]} 16. h3 {[%emt 0:04:43]} Nf8 {[%emt 0:02:47]} 17. Re1 {[%emt 0:02:17]} a6 {[%emt 0:02:33]} 18. a4 {[%emt 0:05:45]} Na5 {[%emt 0:03:56][%cal Bc6a5,Ba5c4,Bc4e3][%mdl 32]} 19. Ne5 {[%emt 0:05:28]} Rc8 {[%emt 0:09:11]} 20. Qg4 {[%emt 0:05:25]} (20. Rc2 {simplifies} Bxe5 21. dxe5 Nc4 22. Rce2) 20... f5 {[%emt 0:08:28]} 21. Qh5 {[%emt 0:01:06]} (21. Qg3 $5 {[%cal Re3h6]}) 21... Bxe5 {[%emt 0:02:03]} 22. dxe5 {[%emt 0:00:21]} Nc4 {[%emt 0:00:35]} 23. b3 {[%emt 0:07:02]} (23. g4 $11 {keeps the balance.}) 23... Nxe3 $17 {[%emt 0:02:46]} 24. Rxe3 {[%emt 0:00:09]} Qf7 {[%emt 0:04:02]} (24... d4 $17 25. Rd3 Qxe5) 25. Qh4 $15 {[%emt 0:03:36]} Ng6 {[%emt 0:00:05]} 26. Qd4 {[%emt 0:01:12]} Red8 {[%emt 0:00:02]} 27. Rf3 {[%emt 0:01:12]} Qc7 {[%emt 0:01:09]} 28. Re1 {[%emt 0:00:56]} Qc5 {[%emt 0:03:21]} 29. Qd2 {[%emt 0:01:37]} Rf8 {[%emt 0:00:55]} (29... Qb6 $5 {[%cal Rb6b3]}) 30. Qe2 {[%emt 0:05:47]} (30. Rg3 {looks sharper.} Kh7 31. Kh2 Rc6 32. f4) 30... Qe7 {[%emt 0:01:58]} 31. Qd3 {[%emt 0:00:49]} Rf7 {[%emt 0:01:05]} 32. g4 {[%emt 0:02:25]} ({White has to play} 32. Rg3 $1 $15 Nh4 33. Bc2) 32... Nh4 {[%emt 0:01:41]} 33. Rg3 {[%emt 0:01:27]} g5 {[%emt 0:01:45] ...f4 would be deadly.} 34. gxf5 {[%emt 0:01:19]} Rxf5 {[%emt 0:00:57]} 35. Qe2 {[%emt 0:01:40]} (35. c4 $142 dxc4 36. bxc4) 35... Rf4 $17 {[%emt 0:00:42] Black is more active.} 36. Kh1 {[%emt 0:04:41]} (36. c4 $17) 36... Qf7 $19 {[%emt 0:00:21]} 37. Reg1 {[%emt 0:00:34]} (37. Rf1 {was the only defense.}) 37... Nf3 {[%emt 0:00:41]} 38. Rc1 {[%emt 0:01:34]} Rf8 {[%emt 0:00:22]} 39. Rf1 {[%emt 0:01:11]} (39. c4 $142) 39... Qg7 {[%emt 0:00:28]} 40. Qc2 {[%emt 0:01:17]} (40. c4 $17) 40... Qf7 {[%emt 0:00:29]} (40... Qxe5 $2 41. Qh7#) 41. Qe2 {[%emt 0:32:20]} Nh4 {[%emt 0:30:25][%cal Rf4f2]} 42. Rfg1 $2 {[%emt 0:00:47]} (42. Kg1) 42... Nf3 $2 {[%emt 0:00:00]} (42... Rxf2 $19 43. Qd3 Rf3) 43. Rd1 $2 {[%emt 0:00:00]} (43. Rf1 $1 $11 {and White stays safe.}) 43... Qc7 $36 {[%emt 0:00:00][%mdl 2048] White is under strong pressure.} 44. Qc2 $2 {[%emt 0:00:00]} (44. Rc1) 44... Nxe5 {[%emt 0:00:00][%mdl 64] [#] Discovered Attack} (44... Qxe5 $2 45. Qh7#) 45. Rdg1 {[%emt 0:00:00]} (45. Re1 {keeps fighting.} Rxf2 46. Qh7+ Qxh7 47. Bxh7+ Kxh7 48. Rxe5) 45... R8f6 {[%emt 0:00:00]} ({Not} 45... Rxf2 46. Rxg5+ hxg5 47. Rxg5+ Kh8 48. Rh5+ Kg8 49. Rg5+ Kh8 50. Rh5+ Kg8 51. Rg5+ $11) 46. Qe2 {[%emt 0:00:00]} (46. Rf1 $142) 46... Rxf2 {[%emt 0:00:00]} 47. Qe3 {[%emt 0:00:00]} Nf7 {[%emt 0:00:00]} (47... R6f3 $142 48. Rxf3 Rxf3) 48. Bg6 {[%emt 0:00:00]} Kf8 {[%emt 0:00:00][%cal Bg8f8,Bf8f7,Bf7e8][%mdl 32]} 49. Bxf7 {[%emt 0:00:00]} Kxf7 {[%emt 0:00:00]} 50. Qd3 {[%emt 0:00:00] Threatens to win with Qh7+.} Ke8 {[%emt 0:00:00]} 51. h4 $2 {[%emt 0:00:00]} (51. b4) 51... Qf4 {[%emt 0:00:46]} 52. h5 $2 {[%emt 0:00:54]} (52. Qd4) 52... Rf1 {[%emt 0:01:02]} (52... g4 $142 {( -> ...Rf5)} 53. Qd4 Rf5 54. Qh8+ Ke7 55. Qh7+ Kd6 56. Qxf5 Qxf5 57. R1g2 Rf1+ 58. Rg1 Qe4+ 59. Kh2 Rf2+ 60. R1g2 Rf5 61. Rh3 gxh3 62. Kxh3 Rxh5+ 63. Kg3 Qe3+ 64. Kg4 Rh3 65. c4 h5#) 53. Kh2 {[%emt 0:01:18] [#]} (53. Qxf1 $19 Qxf1 54. Rxf1 Rxf1+ 55. Kg2) 53... Qh4+ {[%emt 0:00:57]} 54. Rh3 {[%emt 0:01:34]} Qe1 {[%emt 0:02:33]} (54... Qf2+ $142 55. Rg2 Qe1 56. Qxf1 Rxf1 57. Ra2 Rh1+ 58. Kg2 Qf1+ 59. Kg3 Rxh3+ 60. Kg4 Qf5#) 55. Re3 {[%emt 0:01:50]} Qh4+ {[%emt 0:00:27]} 56. Rh3 {[%emt 0:00:10]} Qf4+ {[%emt 0:00:11]} 57. Rhg3 $1 {[%emt 0:01:15]} Rxg1 {[%emt 0:00:05]} 58. Kxg1 {[%emt 0:00:14] KQR-KQR} Qh4 {[%emt 0:00:43]} (58... Qf2+ $142 59. Kh1 Rf4 60. Qg6+ Kd7 61. Qd3 Rh4+ 62. Rh3 Rg4 63. Rg3 Rxg3 64. Qxg3 Qxg3 65. a5 Qf2 66. c4 g4 67. c5 g3 68. c6+ bxc6 69. b4 Qh2#) 59. Rg2 {[%emt 0:00:23]} (59. Rf3 $142 Qg4+ 60. Rg3) 59... Qxh5 {[%emt 0:00:46]} (59... Qe1+ $142 60. Kh2 Rf4) 60. Qh7 {[%emt 0:00:34]} (60. Rg3 $19) 60... Qf7 {[%emt 0:00:11]} (60... Qd1+ $142 61. Kh2 Rf1 62. Qg6+ Kd7 63. Qh7+ Kc6 64. Qf7 Rxf7 65. Rg3 Rf1 66. Rg1 Rxg1 67. c4 Qg4 68. cxd5+ exd5 69. a5 Qg3#) 61. Qh8+ {[%emt 0:00:29]} Qf8 {[%emt 0:00:10]} 62. Qh7 {[%emt 0:00:10]} Rf1+ {[%emt 0:00:56] Black mates.} 63. Kh2 {[%emt 0:00:15]} Qf4+ {[%emt 0:00:21]} 64. Rg3 {[%emt 0:00:19]} Qh4+ {[%emt 0:01:02]} 65. Rh3 {[%emt 0:00:12]} Qf2# {[%emt 0:00:07] Weighted Error Value: White=0.92/Black=0.65} 0-1

[Event "DFMM-LV 2023"]
[Site "Braunfels"]
[Date "2023.06.11"]
[Round "5.15"]
[White "Rosmait, Emily"]
[Black "Pflug, Tanja"]
[Result "1-0"]
[Annotator "TA"]
[ECO "C03"]
[WhiteElo "1862"]
[BlackElo "1994"]
[PlyCount "77"]
[EventDate "2023.06.09"]
[EventType "team-tourn"]
[EventCountry "GER"]
[SourceTitle "playchess.com"]
[Source "ChessBase"]
[SourceQuality "1"]
[TimeControl "40/5400+30:1800+30"]

{[%evp 9,77,16,45,37,40,38,42,39,31,27,38,29,29,0,14,0,0,0,0,0,18,25,28,23,27,27,28,35,29,31,35,0,0,0,0,0,17,8,15,20,50,14,131,95,125,125,188,147,198,118,211,181,182,180,180,182,171,168,210,207,220,228,442,422,513,531,747,723,1244,1233]} 1. e4 {[%emt 0:00:03]} e6 {[%emt 0:00:05]} 2. d4 {[%emt 0:00:08]} d5 {[%emt 0:00:05]} 3. Nd2 {[%emt 0:00:05]} Be7 {[%emt 0:00:06]} 4. Bd3 {[%emt 0:00:22]} c5 {[%emt 0:00:57]} 5. dxc5 {[%emt 0:03:41]} Bxc5 {[%emt 0:00:23]} 6. Ngf3 {[%emt 0:00:53] C03: French Tarrasch: Unusual Black 3rd moves.} Nf6 {[%emt 0:01:06]} 7. e5 {[%emt 0:02:03]} Nfd7 {[%emt 0:20:22]} 8. O-O {[%emt 0:02:15] White is slightly better.} Nc6 {[%emt 0:00:12]} 9. Qe2 {[%emt 0:03:25]} Nb4 {[%emt 0:02:54]} 10. Nb3 {[%emt 0:01:14]} (10. Bb5 {looks sharper.} a6 11. Nb3 Be7 12. c3) 10... Nxd3 {[%emt 0:02:56] [#]} 11. Qxd3 $146 {[%emt 0:00:09]} ({Predecessor:} 11. cxd3 Be7 12. Bd2 O-O 13. Rac1 Nb6 14. Nfd4 Qe8 15. Rfe1 Na4 16. Rc2 Bd7 17. Qg4 {1-0 Berczes,C (2316)-Richards,H (2275) Budapest FS09 IM-B 2002 (4)}) 11... Be7 {[%emt 0:00:08]} 12. c3 {[%emt 0:02:08]} O-O {[%emt 0:03:26]} 13. Re1 {[%emt 0:00:31]} a5 {[%emt 0:05:04]} 14. a4 {[%emt 0:06:48]} Nb6 {[%emt 0:06:34]} 15. Nbd4 {[%emt 0:01:50]} Bd7 {[%emt 0:05:24]} 16. b3 {[%emt 0:02:37]} Bc6 {[%emt 0:02:52]} 17. Ba3 {[%emt 0:04:46]} Nd7 {[%emt 0:01:29]} 18. Bxe7 {[%emt 0:05:40]} Qxe7 {[%emt 0:45:27]} 19. Qe3 {[%emt 0:08:58]} Nc5 {[%emt 0:00:00]} 20. h4 {[%emt 0:03:16]} Bd7 {[%emt 0:00:00]} 21. g3 {[%emt 0:08:53]} Rac8 {[%emt 0:00:00]} 22. Rac1 {[%emt 0:01:12]} Na6 {[%emt 0:00:00]} 23. Kg2 {[%emt 0:02:25]} Nc7 {[%emt 0:00:00]} 24. Qd3 {[%emt 0:02:08] Black is weak on the dark squares} f5 {[%emt 0:00:00]} 25. exf6 {[%emt 0:08:20]} Qxf6 {[%emt 0:00:00]} (25... gxf6 $11 26. Nf5 Qd8) 26. Rc2 {[%emt 0:01:35] White is more active.} Rce8 {[%emt 0:00:00]} 27. Ne5 {[%emt 0:03:03]} Bc8 {[%emt 0:00:00]} (27... Qd8 $16 28. Ndf3 h6) 28. Ndf3 $40 {[%emt 0:04:03][%mdl 128] White has strong attack.} Re7 {[%emt 0:00:00]} (28... Rd8 $16 {was necessary.} 29. Nd4 (29. Ng5 Qf5 $16) 29... Bd7) 29. Ng5 {[%emt 0:00:39]} (29. Qd4 $18) 29... g6 {[%emt 0:00:00]} (29... Qf5 $16 {might work better.}) 30. Ngf3 {[%emt 0:01:42][%cal Bg5f3,Bf3d4,Bd4b3][%mdl 32]} Qf5 {[%emt 0:00:00]} 31. Qd2 {[%emt 0:04:04]} Na6 {[%emt 0:00:00]} 32. Nd4 {[%emt 0:00:45] Excellent horsemanship.} Qf6 {[%emt 0:00:00]} 33. b4 {[%emt 0:04:26] Against Nc5} Kh8 {[%emt 0:00:00]} 34. Nb3 {[%emt 0:01:02]} ({Don't take} 34. bxa5 $6 Nc5 35. Qe3 Ne4) 34... axb4 {[%emt 0:00:00]} 35. cxb4 {[%emt 0:00:23][%cal Bc3b4,Bb4b5][%mdl 32] Hoping for Qd4.} Nc7 $2 {[%emt 0:00:00] [#]} (35... Rc7 36. Rb2 Re7) 36. Nd4 $18 {[%emt 0:01:21] White is clearly winning.} Qg7 {[%emt 0:00:00]} 37. Qc1 {[%emt 0:02:37]} h6 {[%emt 0:02:06]} 38. b5 {[%emt 0:03:03]} Qf6 {[%emt 0:03:11]} 39. Qxh6+ {[%emt 0:02:19] Weighted Error Value: White=0.11 (very precise) /Black=0.34} ({Inferior is} 39. Rxc7 Qxf2+ 40. Kh3 Rxc7 41. Qxc7 Qxe1 $11) 1-0